fUST/lending_fUST_20250306
["ID","MTS","AMOUNT","RATE_DAILY","PERIOD"]
[355510523,1741216239179,-434.92618331,0.00046575,120]
[355510525,1741216239188,-500.0,0.00046575,120]
[355510527,1741216239197,-500.0,0.00046575,120]
[355510529,1741216239206,-500.0,0.00046575,120]
[355510531,1741216239215,-500.0,0.00046575,120]
[355510533,1741216239224,-500.0,0.00046575,120]
[355510535,1741216239232,-500.0,0.00046575,120]
[355510537,1741216239242,-561.23,0.00046575,120]
[355510539,1741216239251,-500.0,0.00046575,120]
[355510541,1741216239259,-5203.01779439,0.00046575,7]
[355510544,1741216239271,-674.62973335,0.00046575,7]
[355510546,1741216239282,-596.59801914,0.00046575,7]
[355510548,1741216239293,-892.31656702,0.00046575,7]
[355510760,1741216243405,-495.37460088,0.00046575,7]
[355510761,1741216243416,-10249.78328522,0.00046575,7]
[355510762,1741216243425,-500.0,0.00046575,120]
[355510763,1741216243435,-500.0,0.00046575,120]
[355510764,1741216243444,-500.0,0.00046575,120]
[355510765,1741216243454,-593.43975013,0.00046575,120]
[355510766,1741216243463,-500.0,0.00046575,120]
[355510767,1741216243472,-500.0,0.00046575,120]
[355510768,1741216243481,-500.0,0.00046575,120]
[355510769,1741216243490,-500.0,0.00046575,120]
[355510770,1741216243499,-500.0,0.00046575,120]
[355510771,1741216243508,-500.0,0.00046575,120]
[355510772,1741216243517,-500.0,0.00046575,120]
[355510773,1741216243526,-500.0,0.00046575,120]
[355510774,1741216243535,-179.83,0.00046575,120]
[355510775,1741216243544,-501.26657096,0.00046575,120]
[355510776,1741216243554,-615.58,0.00046575,120]
[355510777,1741216243563,-500.0,0.00046575,120]
[355510778,1741216243572,-500.0,0.00046575,120]
[355510779,1741216243582,-500.0,0.00046575,120]
[355510780,1741216243591,-500.0,0.00046575,120]
[355510781,1741216243601,-500.0,0.00046575,120]
[355510783,1741216243610,-598.66,0.00046575,120]
[355510785,1741216243620,-506.43,0.00046575,30]
[355510786,1741216243630,-493.2916647,0.00046575,120]
[355510787,1741216243639,-500.0,0.00046575,120]
[355510788,1741216243649,-500.0,0.00046575,120]
[355510789,1741216243658,-500.0,0.00046575,120]
[355510790,1741216243667,-500.0,0.00046575,120]
[355510791,1741216243676,-500.0,0.00046575,120]
[355510792,1741216243685,-500.0,0.00046575,120]
[355510793,1741216243694,-500.0,0.00046575,120]
[355510794,1741216243703,-500.0,0.00046575,120]
[355510795,1741216243713,-500.0,0.00046575,120]
[355510796,1741216243722,-500.0,0.00046575,120]
[355510797,1741216243731,-500.0,0.00046575,120]
[355510798,1741216243740,-500.0,0.00046575,120]
[355510799,1741216243749,-500.0,0.00046575,120]
[355510800,1741216243758,-500.0,0.00046575,120]
[355510801,1741216243767,-585.64,0.00046575,120]
[355510803,1741216243775,-500.0,0.00046575,120]
[355510804,1741216243784,-500.0,0.00046575,120]
[355510805,1741216243794,-500.0,0.00046575,10]
[355510806,1741216243802,-266.96372682,0.00046575,120]
[355510807,1741216243811,-500.0,0.00046575,120]
[355510808,1741216243821,-500.0,0.00046575,120]
[355510809,1741216243829,-500.0,0.00046575,120]
[355510810,1741216243838,-500.0,0.00046575,120]
[355510811,1741216243847,-500.0,0.00046575,120]
[355510812,1741216243856,-323.39599842,0.00046575,120]
[355510813,1741216243864,-500.0,0.00046575,120]
[355510814,1741216243873,-500.0,0.00046575,120]
[355510815,1741216243882,-500.0,0.00046575,120]
[355510816,1741216243891,-500.0,0.00046575,120]
[355510817,1741216243900,-515.07,0.00046575,120]
[355510818,1741216243910,-511.59,0.00046575,120]
[355510819,1741216243919,-151.0,0.00046575,14]
[355510820,1741216243927,-151.0,0.00046575,14]
[355510821,1741216243935,-181.99504,0.00046575,14]
[355510822,1741216243943,-500.0,0.00046575,120]
[355510823,1741216243952,-500.0,0.00046575,120]
[355510824,1741216243961,-500.0,0.00046575,120]
[355510825,1741216243970,-151.0,0.00046575,120]
[355510826,1741216243980,-500.0,0.00046575,120]
[355510827,1741216243989,-500.0,0.00046575,120]
[355510828,1741216243997,-500.0,0.00046575,120]
[355510829,1741216244006,-500.0,0.00046575,120]
[355510830,1741216244015,-151.0,0.00046575,120]
[355510831,1741216244024,-151.0,0.00046575,120]
[355510832,1741216244032,-151.0,0.00046575,120]
[355510833,1741216244041,-500.0,0.00046575,120]
[355510834,1741216244050,-500.0,0.00046575,120]
[355510835,1741216244059,-152.767922,0.00046575,120]
[355510836,1741216244070,-152.767922,0.00046575,120]
[355510837,1741216244079,-500.0,0.00046575,120]
[355510838,1741216244088,-500.0,0.00046575,120]
[355510839,1741216244098,-500.0,0.00046575,120]
[355510840,1741216244107,-500.0,0.00046575,120]
[355510841,1741216244117,-500.0,0.00046575,120]
[355510842,1741216244126,-152.767922,0.00046575,120]
[355510843,1741216244135,-152.767922,0.00046575,120]
[355510844,1741216244145,-500.0,0.00046575,120]
[355510845,1741216244155,-500.0,0.00046575,120]
[355510846,1741216244164,-500.0,0.00046575,120]
[355510847,1741216244173,-500.0,0.00046575,120]
[355510848,1741216244183,-184.54688932,0.00046575,40]
[355510849,1741216244192,-1174.61966757,0.00046575,40]
[355510850,1741216244202,-2588.26655979,0.00046575,120]
[355510868,1741216246447,-151.0,0.00046575,120]
[355510869,1741216246457,-7411.73344021,0.00046575,120]
[355510870,1741216246466,-918.16655979,0.00046575,120]
[355510874,1741217368081,-207.11053828,0.00023,10]
[355510915,1741217432562,-150.0,0.000209,2]
[355510917,1741217432573,-96.34769058,0.00023,10]
[355510919,1741217432583,-150.0,0.000259,2]
[355510920,1741217432592,-2011.66860013,0.0003,3]
[355510922,1741217432604,-2105.50371567,0.0003,3]
[355510923,1741217432613,-296.13859329,0.00034,30]
[355510924,1741217432623,-419.798528,0.00035126,2]
[355510925,1741217432632,-231.550042,0.0003589,2]
[355510926,1741217432641,-400.0,0.00035922,2]
[355510927,1741217432651,-850.9847602,0.00035923,2]
[355510928,1741217432664,-310.3797944,0.00036066,2]
[355510929,1741217432673,-203.461448,0.00036154,2]
[355510930,1741217432683,-15625.0,0.00038146,2]
[355510931,1741217432692,-150.90114586,0.000395,117]
[355510932,1741217432703,-837.65922695,0.00039599,2]
[355510933,1741217432712,-199.03212425,0.000396,2]
[355510934,1741217432722,-500.0,0.00039673,5]
[355510935,1741217432731,-200.0,0.00039676,2]
[355510936,1741217432742,-216.0,0.00039676,2]
[355510937,1741217432752,-233.28,0.00039676,2]
[355510938,1741217432763,-251.9424,0.00039676,2]
[355510939,1741217432772,-272.097792,0.00039676,2]
[355510940,1741217432782,-293.86561536,0.00039676,2]
[355510941,1741217432793,-317.37486459,0.00039676,2]
[355510942,1741217432802,-342.76485376,0.00039676,2]
[355510943,1741217432811,-370.18604206,0.00039676,2]
[355510944,1741217432821,-400.0,0.00039676,2]
[355510945,1741217432831,-317.66,0.0003969,3]
[355510946,1741217432840,-4228.38391632,0.0003969,3]
[355510947,1741217432850,-247.90881469,0.00039699,15]
[355510948,1741217432860,-500.0,0.00039699,2]
[355510949,1741217432870,-500.0,0.00039699,2]
[355510950,1741217432879,-500.0,0.00039699,2]
[355510951,1741217432888,-500.0,0.00039699,2]
[355510952,1741217432899,-500.0,0.00039699,2]
[355510953,1741217432908,-500.0,0.00039699,2]
[355510954,1741217432918,-500.0,0.00039699,2]
[355510955,1741217432927,-500.0,0.00039699,2]
[355510956,1741217432937,-500.0,0.00039699,2]
[355510957,1741217432947,-500.0,0.00039699,2]
[355510958,1741217432956,-500.0,0.00039699,2]
[355510959,1741217432965,-303.1829014,0.00039699,2]
[355510983,1741217438627,-196.8170986,0.00039699,2]
[355510984,1741217438637,-561.49433038,0.00039699,2]
[355510985,1741217438649,-500.0,0.00039699,2]
[355510986,1741217438663,-500.0,0.00039699,2]
[355510987,1741217438672,-500.0,0.00039699,2]
[355510988,1741217438682,-500.0,0.00039699,2]
[355510989,1741217438698,-500.0,0.00039699,2]
[355510990,1741217438712,-500.0,0.00039699,2]
[355510991,1741217438722,-500.0,0.00039699,2]
[355510992,1741217438733,-500.0,0.00039699,2]
[355510993,1741217438743,-500.0,0.00039699,2]
[355510994,1741217438753,-500.0,0.00039699,2]
[355510995,1741217438763,-500.0,0.00039699,2]
[355510996,1741217438773,-500.0,0.00039699,2]
[355510997,1741217438783,-500.0,0.00039699,2]
[355510998,1741217438792,-500.0,0.00039699,2]
[355510999,1741217438802,-500.0,0.00039699,2]
[355511000,1741217438812,-500.0,0.00039699,2]
[355511001,1741217438822,-500.0,0.00039699,2]
[355511002,1741217438833,-500.0,0.00039699,2]
[355511003,1741217438842,-500.0,0.00039699,2]
[355511004,1741217438852,-351.92684221,0.00039699,2]
[355511005,1741217438865,-148.07315779,0.00039699,2]
[355511006,1741217438875,-500.0,0.00039699,2]
[355511007,1741217438885,-500.0,0.00039699,2]
[355511008,1741217438895,-249.99999999,0.00039699,2]
[355511009,1741217438906,-500.0,0.00039699,15]
[355511010,1741217438915,-303.22962186,0.00039699,15]
[355511011,1741217438925,-150.0,0.00039699,2]
[355511012,1741217438934,-265.96281875,0.00039699,2]
[355511013,1741217438946,-234.03718125,0.00039699,2]
[355511014,1741217438956,-500.0,0.00039699,15]
[355511015,1741217438966,-500.0,0.00039699,15]
[355511016,1741217438975,-3119.13140075,0.000397,2]
[355511017,1741217438987,-1779.99999998,0.000397,2]
[355511051,1741217440857,-6145.56315385,0.000397,2]
[355511059,1741217443623,-5988.44197974,0.000397,2]
[355511286,1741217446630,-26746.80060685,0.000397,2]
[355511463,1741218633083,-682.11140949,0.00023,10]
[355511465,1741218633095,-172.88181924,0.00023,10]
[355511467,1741218633105,-682.11140949,0.00023,10]
[355511469,1741218633115,-682.11140949,0.00023,10]
[355511471,1741218633124,-300.0,0.00026574,2]
[355511473,1741218633134,-265.0,0.00028742,2]
[355511475,1741218633144,-1055.0,0.0003,30]
[355511477,1741218633155,-203.2352261,0.00034957,2]
[355511479,1741218633167,-10116.3304429,0.00035417,2]
[355511480,1741218633177,-219.972539,0.0003589,2]
[355511483,1741218633187,-1016.22752275,0.000362,98]
[355511484,1741218633198,-226.604919,0.00036378,2]
[355511487,1741218633209,-185.244618,0.00037095,2]
[355511489,1741218633219,-1016.22752271,0.00037331,104]
[355511490,1741218633230,-1074.17209934,0.000395,2]
[355511492,1741218633239,-480.44193629,0.000395,2]
[355511494,1741218633249,-416.66666667,0.00039547,2]
[355511496,1741218633260,-160.0,0.00039564,2]
[355511498,1741218633271,-8822.22919,0.00039572,2]
[355511501,1741218633280,-500.0,0.00039573,5]
[355511503,1741218633291,-500.0,0.00039573,5]
[355511505,1741218633300,-500.0,0.00039573,5]
[355511507,1741218633310,-576.90571469,0.00039573,5]
[355511509,1741218633320,-500.0,0.00039573,5]
[355511511,1741218633330,-506.64840963,0.00039573,5]
[355511513,1741218633340,-500.0,0.00039573,5]
[355511515,1741218633350,-151.0,0.00039576,2]
[355511517,1741218633359,-200.0,0.00039576,2]
[355511519,1741218633369,-216.0,0.00039576,2]
[355511521,1741218633379,-233.28,0.00039576,2]
[355511522,1741218633388,-251.9424,0.00039576,2]
[355511524,1741218633398,-272.097792,0.00039576,2]
[355511525,1741218633407,-293.86561536,0.00039576,2]
[355511526,1741218633418,-317.37486459,0.00039576,2]
[355511527,1741218633428,-342.76485376,0.00039576,2]
[355511528,1741218633437,-370.18604206,0.00039576,2]
[355511529,1741218633447,-400.0,0.00039576,2]
[355511530,1741218633457,-2537.03034978,0.0003959,3]
[355511531,1741218633467,-334.1,0.0003959,3]
[355511532,1741218633476,-167.05,0.0003959,3]
[355511533,1741218633486,-501.15,0.0003959,3]
[355511534,1741218633496,-226.76012314,0.00039599,15]
[355511535,1741218633506,-413.60622446,0.00039599,2]
[355511536,1741218633519,-86.39377554,0.00039599,2]
[355511537,1741218633529,-500.0,0.00039599,2]
[355511538,1741218633539,-500.0,0.00039599,2]
[355511539,1741218633549,-531.14943304,0.00039599,2]
[355511540,1741218633558,-500.0,0.00039599,2]
[355511541,1741218633568,-500.0,0.00039599,120]
[355511542,1741218633577,-184.54688932,0.000396,5]
[355511543,1741218633587,-587.30983378,0.000396,5]
[355511544,1741218633598,-222000.0,0.000396,2]
[355511545,1741218633607,-2000.0,0.000396,30]
[355511546,1741218633617,-845.67678326,0.00039633,3]
[355511548,1741218633627,-11267.4636451,0.00039635,2]
[355511550,1741218633636,-500.63511285,0.00039699,2]
[355511552,1741218633646,-150.0,0.00039699,2]
[355511554,1741218633656,-161.66,0.000397,30]
[355511556,1741218633668,-155.41,0.000397,30]
[355511558,1741218633677,-822.20666601,0.000399,8]
[355511560,1741218633687,-500.0,0.00039973,5]
[355511562,1741218633698,-500.0,0.00039973,5]
[355511564,1741218633707,-500.0,0.00039973,5]
[355511566,1741218633717,-500.0,0.00039973,5]
[355511568,1741218633727,-500.0,0.00039973,5]
[355511570,1741218633736,-5074.06069956,0.0003999,3]
[355511572,1741218633746,-404.83599736,0.00039999,31]
[355511574,1741218633755,-560.00072977,0.00039999,31]
[355511576,1741218633765,-276657.5800114,0.0004,30]
[355511578,1741218633774,-668.2,0.0004096,3]
[355511580,1741218633784,-334.1,0.0004096,3]
[355511582,1741218633794,-416.66666667,0.0004096,3]
[355511583,1741218633803,-150.0,0.00041069,2]
[355511585,1741218633813,-219.972539,0.00041211,2]
[355511588,1741218633823,-480.44193628,0.00041243,2]
[355511589,1741218633833,-150.0,0.00042439,30]
[355511592,1741218633843,-184.45566677,0.00042777,15]
[355511593,1741218633853,-480.44193628,0.00042987,2]
[355511595,1741218633863,-335.0,0.00043055,14]
[355511598,1741218633873,-153.98,0.000436,36]
[355511600,1741218633883,-153.98,0.000436,36]
[355511602,1741218633892,-153.98,0.000436,36]
[355511604,1741218633902,-5000.0,0.000438,2]
[355511606,1741218633915,-150.0,0.00043809,30]
[355511608,1741218633925,-6080.74,0.000445,120]
[355511610,1741218633935,-480.44193628,0.0004473,2]
[355511612,1741218633944,-1000.0,0.00045,120]
[355511614,1741218633954,-151.0,0.00045,90]
[355511616,1741218633964,-500.0,0.00045052,10]
[355511618,1741218633974,-153.98,0.000451,39]
[355511620,1741218633985,-153.98,0.000451,39]
[355511622,1741218633995,-153.98,0.000451,39]
[355511624,1741218634005,-153.98,0.000451,39]
[355511626,1741218634014,-153.98,0.000451,39]
[355511628,1741218634024,-153.98,0.000451,39]
[355511630,1741218634033,-210.24669615,0.00045179,30]
[355511632,1741218634043,-1000.0,0.00045452,10]
[355511634,1741218634053,-1000.0,0.00045452,10]
[355511636,1741218634066,-1000.0,0.00045452,10]
[355511638,1741218634076,-178.9251258,0.00045601,4]
[355511640,1741218634085,-480.44193628,0.00046473,2]
[355511642,1741218634099,-243.29,0.00046475,120]
[355511644,1741218634109,-189.23069144,0.00046475,120]
[355511646,1741218634119,-189.23069144,0.00046475,120]
[355511648,1741218634128,-45078.52548912,0.000465,60]
[355512108,1741218638724,-654921.47451088,0.000465,60]
[355512110,1741218638733,-219.972539,0.00046532,2]
[355512112,1741218638743,-500.0,0.0004656,30]
[355512114,1741218638752,-7043.89,0.0004656,10]
[355512116,1741218638762,-7611.09104934,0.0004656,4]
[355512118,1741218638771,-845.67678326,0.00046565,4]
[355512120,1741218638780,-416199.9021993,0.0004657,30]
[355512122,1741218638790,-500.0,0.00046573,10]
[355512124,1741218638800,-501.38555224,0.00046575,120]
[355512126,1741218638809,-500.0,0.00046575,120]
[355512128,1741218638819,-500.0,0.00046575,120]
[355512130,1741218638828,-500.0,0.00046575,120]
[355512132,1741218638837,-500.0,0.00046575,120]
[355512134,1741218638847,-500.0,0.00046575,120]
[355512136,1741218638856,-500.0,0.00046575,120]
[355512138,1741218638866,-500.0,0.00046575,120]
[355512140,1741218638875,-500.0,0.00046575,120]
[355512142,1741218638884,-500.0,0.00046575,120]
[355512144,1741218638894,-500.0,0.00046575,120]
[355512146,1741218638904,-500.0,0.00046575,120]
[355512148,1741218638913,-500.0,0.00046575,120]
[355512150,1741218638923,-500.0,0.00046575,120]
[355512152,1741218638933,-500.0,0.00046575,120]
[355512154,1741218638942,-500.0,0.00046575,120]
[355512156,1741218638951,-508.5613179,0.00046575,120]
[355512158,1741218638960,-500.0,0.00046575,120]
[355512160,1741218638970,-500.0,0.00046575,120]
[355512162,1741218638979,-500.0,0.00046575,120]
[355512164,1741218638989,-500.0,0.00046575,120]
[355512166,1741218638999,-500.0,0.00046575,120]
[355512168,1741218639009,-500.0,0.00046575,120]
[355512170,1741218639019,-500.0,0.00046575,120]
[355512172,1741218639028,-500.0,0.00046575,120]
[355512174,1741218639038,-500.0,0.00046575,120]
[355512176,1741218639047,-500.0,0.00046575,120]
[355512178,1741218639058,-500.0,0.00046575,120]
[355512180,1741218639068,-500.0,0.00046575,120]
[355512182,1741218639078,-500.0,0.00046575,120]
[355512184,1741218639087,-500.0,0.00046575,120]
[355512186,1741218639096,-513.29795629,0.00046575,120]
[355512188,1741218639106,-500.0,0.00046575,120]
[355512189,1741218639116,-500.0,0.00046575,120]
[355512191,1741218639125,-500.0,0.00046575,120]
[355512193,1741218639135,-500.0,0.00046575,120]
[355512195,1741218639144,-500.0,0.00046575,120]
[355512197,1741218639154,-500.0,0.00046575,120]
[355512199,1741218639163,-500.0,0.00046575,120]
[355512201,1741218639173,-500.0,0.00046575,120]
[355512203,1741218639183,-500.0,0.00046575,120]
[355512206,1741218639193,-500.0,0.00046575,120]
[355512208,1741218639205,-500.0,0.00046575,120]
[355512210,1741218639215,-500.0,0.00046575,120]
[355512212,1741218639225,-500.0,0.00046575,120]
[355512214,1741218639235,-500.0,0.00046575,120]
[355512216,1741218639244,-500.0,0.00046575,120]
[355512218,1741218639254,-500.0,0.00046575,120]
[355512220,1741218639263,-500.0,0.00046575,120]
[355512222,1741218639273,-500.0,0.00046575,120]
[355512223,1741218639282,-500.0,0.00046575,120]
[355512226,1741218639292,-500.0,0.00046575,120]
[355512228,1741218639301,-500.0,0.00046575,120]
[355512230,1741218639311,-500.0,0.00046575,120]
[355512232,1741218639321,-500.0,0.00046575,120]
[355512234,1741218639332,-500.0,0.00046575,120]
[355512236,1741218639342,-500.0,0.00046575,120]
[355512238,1741218639351,-500.0,0.00046575,120]
[355512240,1741218639360,-503.89202257,0.00046575,120]
[355512242,1741218639370,-500.0,0.00046575,120]
[355512244,1741218639379,-500.0,0.00046575,120]
[355512246,1741218639389,-500.0,0.00046575,120]
[355512248,1741218639399,-500.0,0.00046575,120]
[355512250,1741218639407,-500.0,0.00046575,120]
[355512252,1741218639417,-503.04882339,0.00046575,120]
[355512254,1741218639427,-500.0,0.00046575,120]
[355512256,1741218639436,-500.0,0.00046575,120]
[355512258,1741218639445,-500.0,0.00046575,120]
[355512272,1741218639564,-500.0,0.00046575,120]
[355512274,1741218639577,-500.0,0.00046575,120]
[355512276,1741218639586,-500.0,0.00046575,120]
[355512278,1741218639596,-500.0,0.00046575,120]
[355512280,1741218639606,-500.0,0.00046575,120]
[355512283,1741218639616,-500.0,0.00046575,120]
[355512284,1741218639625,-526.5663977,0.00046575,120]
[355512287,1741218639635,-500.0,0.00046575,120]
[355512289,1741218639644,-500.0,0.00046575,120]
[355512291,1741218639654,-297.94138301,0.00046575,120]
[355512293,1741218639663,-500.0,0.00046575,120]
[355512294,1741218639672,-508.98428685,0.00046575,120]
[355512297,1741218639682,-500.0,0.00046575,120]
[355512299,1741218639691,-500.0,0.00046575,120]
[355512300,1741218639700,-500.0,0.00046575,120]
[355512301,1741218639710,-500.0,0.00046575,120]
[355512302,1741218639719,-500.0,0.00046575,120]
[355512303,1741218639739,-500.0,0.00046575,120]
[355512304,1741218639750,-500.0,0.00046575,120]
[355512305,1741218639761,-500.0,0.00046575,120]
[355512306,1741218639772,-500.0,0.00046575,120]
[355512307,1741218639782,-506.73904477,0.00046575,120]
[355512308,1741218639792,-500.0,0.00046575,120]
[355512309,1741218639802,-500.0,0.00046575,120]
[355512310,1741218639811,-500.0,0.00046575,120]
[355512311,1741218639822,-500.0,0.00046575,120]
[355512312,1741218639832,-500.0,0.00046575,120]
[355512313,1741218639842,-500.0,0.00046575,120]
[355512314,1741218639851,-454.21199356,0.00046575,120]
[355512315,1741218639861,-500.0,0.00046575,120]
[355512316,1741218639871,-500.0,0.00046575,120]
[355512317,1741218639880,-500.0,0.00046575,120]
[355512318,1741218639890,-505.09825157,0.00046575,120]
[355512319,1741218639899,-500.0,0.00046575,120]
[355512320,1741218639909,-582.02370118,0.00046575,120]
[355512321,1741218639918,-500.0,0.00046575,120]
[355512322,1741218639929,-500.0,0.00046575,120]
[355512323,1741218639938,-500.0,0.00046575,120]
[355512324,1741218639948,-500.0,0.00046575,120]
[355512325,1741218639958,-331.03177966,0.00046575,120]
[355512326,1741218639968,-500.0,0.00046575,120]
[355512327,1741218639978,-501.7996192,0.00046575,120]
[355512328,1741218639988,-500.0,0.00046575,120]
[355512329,1741218639998,-501.83087388,0.00046575,120]
[355512330,1741218640007,-500.0,0.00046575,120]
[355512331,1741218640017,-500.0,0.00046575,120]
[355512332,1741218640027,-311.88310788,0.00046575,120]
[355512333,1741218640037,-500.0,0.00046575,120]
[355512334,1741218640047,-500.0,0.00046575,120]
[355512335,1741218640059,-500.0,0.00046575,120]
[355512336,1741218640069,-521.441847,0.00046575,120]
[355512337,1741218640079,-500.0,0.00046575,120]
[355512338,1741218640089,-500.7045061,0.00046575,120]
[355512339,1741218640099,-500.0,0.00046575,120]
[355512340,1741218640109,-500.0,0.00046575,120]
[355512341,1741218640119,-250.67066314,0.00046575,120]
[355512342,1741218640129,-500.0,0.00046575,120]
[355512343,1741218640140,-600.0,0.00046575,120]
[355512344,1741218640150,-500.0,0.00046575,120]
[355512345,1741218640160,-500.0,0.00046575,120]
[355512346,1741218640170,-500.0,0.00046575,120]
[355512347,1741218640180,-500.0,0.00046575,120]
[355512348,1741218640190,-365.24870982,0.00046575,120]
[355512349,1741218640199,-500.0,0.00046575,120]
[355512350,1741218640209,-500.0,0.00046575,2]
[355512351,1741218640218,-500.0,0.00046575,120]
[355512353,1741218640228,-500.0,0.00046575,120]
[355512354,1741218640237,-500.0,0.00046575,120]
[355512355,1741218640247,-500.0,0.00046575,120]
[355512356,1741218640256,-500.0,0.00046575,120]
[355512357,1741218640266,-500.0,0.00046575,120]
[355512358,1741218640276,-500.0,0.00046575,120]
[355512359,1741218640285,-500.0,0.00046575,120]
[355512360,1741218640295,-500.0,0.00046575,120]
[355512361,1741218640305,-500.0,0.00046575,120]
[355512362,1741218640314,-500.0,0.00046575,120]
[355512363,1741218640324,-501.74,0.00046575,120]
[355512364,1741218640334,-500.0,0.00046575,120]
[355512365,1741218640343,-500.0,0.00046575,120]
[355512366,1741218640357,-500.0,0.00046575,120]
[355512367,1741218640367,-439.64695594,0.00046575,120]
[355512368,1741218640377,-500.0,0.00046575,120]
[355512369,1741218640387,-500.0,0.00046575,120]
[355512370,1741218640396,-152.88104778,0.00046575,120]
[355512371,1741218640406,-500.0,0.00046575,120]
[355512372,1741218640416,-500.0,0.00046575,120]
[355512373,1741218640426,-500.0,0.00046575,120]
[355512374,1741218640436,-500.0,0.00046575,120]
[355512375,1741218640446,-500.0,0.00046575,120]
[355512376,1741218640456,-500.0,0.00046575,120]
[355512377,1741218640466,-500.0,0.00046575,120]
[355512378,1741218640476,-500.0,0.00046575,120]
[355512379,1741218640486,-500.0,0.00046575,120]
[355512380,1741218640496,-500.0,0.00046575,120]
[355512381,1741218640505,-395.2626657,0.00046575,120]
[355512382,1741218640515,-500.0,0.00046575,120]
[355512383,1741218640525,-500.0,0.00046575,120]
[355512384,1741218640535,-500.0,0.00046575,120]
[355512385,1741218640545,-406.61527626,0.00046575,120]
[355512386,1741218640555,-500.0,0.00046575,120]
[355512387,1741218640565,-500.0,0.00046575,120]
[355512388,1741218640575,-500.0,0.00046575,120]
[355512389,1741218640584,-500.0,0.00046575,120]
[355512390,1741218640594,-500.0,0.00046575,30]
[355512391,1741218640604,-620.04494997,0.00046575,120]
[355512392,1741218640613,-500.0,0.00046575,120]
[355512393,1741218640623,-500.0,0.00046575,120]
[355512394,1741218640632,-500.0,0.00046575,120]
[355512395,1741218640642,-500.0,0.00046575,120]
[355512396,1741218640652,-500.0,0.00046575,120]
[355512397,1741218640662,-500.0,0.00046575,120]
[355512398,1741218640672,-500.0,0.00046575,120]
[355512400,1741218640683,-500.0,0.00046575,120]
[355512402,1741218640692,-500.0,0.00046575,120]
[355512404,1741218640701,-500.0,0.00046575,120]
[355512406,1741218640711,-500.0,0.00046575,120]
[355512408,1741218640720,-500.0,0.00046575,120]
[355512409,1741218640728,-500.0,0.00046575,120]
[355512412,1741218640737,-460.22798626,0.00046575,120]
[355512414,1741218640747,-500.0,0.00046575,120]
[355512415,1741218640756,-500.0,0.00046575,120]
[355512417,1741218640765,-500.0,0.00046575,120]
[355512419,1741218640775,-500.0,0.00046575,120]
[355512422,1741218640786,-500.0,0.00046575,120]
[355512424,1741218640796,-500.0,0.00046575,120]
[355512426,1741218640806,-500.0,0.00046575,120]
[355512428,1741218640815,-500.0,0.00046575,120]
[355512430,1741218640825,-500.0,0.00046575,120]
[355512432,1741218640835,-500.0,0.00046575,120]
[355512434,1741218640844,-500.0,0.00046575,120]
[355512436,1741218640853,-636.66378693,0.00046575,120]
[355512438,1741218640863,-500.0,0.00046575,120]
[355512439,1741218640873,-500.0,0.00046575,120]
[355512440,1741218640883,-500.0,0.00046575,120]